fUSD/lending_fUSD_20260227
["ID","MTS","AMOUNT","RATE_DAILY","PERIOD"]
[406790644,1772195444763,-9748.6543741,0.00038097,2]
[406790645,1772195444772,-882.46526268,0.000381,33]
[406790646,1772195444781,-468.0,0.00038107,2]
[406790647,1772195444790,-468.0,0.00038162,2]
[406790648,1772195444798,-468.0,0.00038217,2]
[406790649,1772195444808,-150.0,0.00038252,2]
[406790650,1772195444817,-468.0,0.00038272,2]
[406790651,1772195444826,-185.86919859,0.000383,30]
[406790652,1772195444834,-468.0,0.00038326,2]
[406790653,1772195444844,-160.0,0.00038356,120]
[406790654,1772195444853,-237.37622037,0.0003838,5]
[406790655,1772195444862,-468.0,0.00038381,2]
[406790656,1772195444871,-468.0,0.00038436,2]
[406790657,1772195444880,-468.0,0.00038491,2]
[406790658,1772195444890,-11749.96,0.000385,30]
[406790659,1772195444900,-1040.2,0.00038506,7]
[406790660,1772195444909,-1001.5686,0.00038522,2]
[406790661,1772195444918,-468.0,0.00038546,2]
[406790662,1772195444927,-158.0,0.00038596,14]
[406790663,1772195444937,-468.0,0.000386,2]
[406790664,1772195444946,-468.0,0.00038655,2]
[406790665,1772195444955,-468.0,0.0003871,2]
[406790666,1772195444964,-174.0,0.00038745,120]
[406790667,1772195444974,-175.0,0.00038745,120]
[406790668,1772195444983,-468.0,0.00038765,2]
[406790669,1772195444992,-1309.1,0.000388,14]
[406790670,1772195445002,-171.0,0.00038816,120]
[406790671,1772195445011,-468.0,0.00038819,2]
[406790672,1772195445021,-486.0,0.00038874,2]
[406790673,1772195445030,-2000.0,0.000389,7]
[406790674,1772195445039,-385.96002226,0.00038904,5]
[406790675,1772195445048,-500.0,0.0003897,2]
[406790676,1772195445057,-1000.0,0.0003897,2]
[406790677,1772195445067,-26657.57892796,0.00039,2]
[406790678,1772195445077,-396.00419288,0.00039,14]
[406790679,1772195445086,-36555.46185015,0.00039,10]
[406790680,1772195445097,-1523.9884175,0.00039,120]
[406790681,1772195445110,-5515.33,0.00039,14]
[406790682,1772195445120,-7675.47,0.00039,14]
[406790683,1772195445130,-171.0,0.00039096,120]
[406790684,1772195445140,-1843.18097405,0.00039105,2]
[406790685,1772195445151,-1040.2,0.00039205,30]
[406790686,1772195445160,-1935.7406728,0.00039213,2]
[406790687,1772195445169,-353.32,0.00039221,30]
[406790688,1772195445179,-500.0,0.0003931,120]
[406790689,1772195445188,-252845.90436,0.00039311,2]
[406790690,1772195445197,-151.0,0.00039311,120]
[406790691,1772195445206,-151.0,0.00039311,120]
[406790692,1772195445215,-167.807585,0.00039311,120]
[406790693,1772195445224,-167.807585,0.00039311,120]
[406790694,1772195445233,-167.807585,0.00039311,120]
[406790695,1772195445243,-167.807585,0.00039311,120]
[406790696,1772195445253,-487.770219,0.00039311,120]
[406790697,1772195445263,-487.770219,0.00039311,120]
[406790698,1772195445272,-487.770219,0.00039311,120]
[406790699,1772195445280,-487.770219,0.00039311,120]
[406790700,1772195445290,-671.063363,0.00039311,120]
[406790701,1772195445299,-671.063363,0.00039311,120]
[406790702,1772195445308,-671.063363,0.00039311,120]
[406790703,1772195445317,-671.063363,0.00039311,120]
[406790704,1772195445327,-347.32002,0.00039311,120]
[406790705,1772195445336,-347.32002,0.00039311,120]
[406790706,1772195445346,-347.32002,0.00039311,120]
[406790707,1772195445355,-347.32002,0.00039311,120]
[406790708,1772195445365,-151.0,0.00039311,120]
[406790709,1772195445375,-151.0,0.00039311,120]
[406790710,1772195445386,-167.726172,0.00039311,120]
[406790711,1772195445395,-167.726172,0.00039311,120]
[406790712,1772195445404,-167.726172,0.00039311,120]
[406790713,1772195445414,-167.726172,0.00039311,120]
[406790714,1772195445424,-246.873954,0.00039311,120]
[406790715,1772195445435,-151.0,0.00039311,120]
[406790716,1772195445446,-278.322927,0.00039311,120]
[406790717,1772195445456,-151.0,0.00039311,120]
[406790718,1772195445465,-151.0,0.00039311,120]
[406790719,1772195445475,-151.0,0.00039311,120]
[406790720,1772195445483,-280.271723,0.00039311,120]
[406790721,1772195445493,-361.292831,0.00039311,120]
[406790722,1772195445503,-361.292831,0.00039311,120]
[406790723,1772195445513,-361.292831,0.00039311,120]
[406790724,1772195445521,-361.292831,0.00039311,120]
[406790725,1772195445533,-322.815662,0.00039311,7]
[406790726,1772195445542,-151.0,0.00039311,120]
[406790727,1772195445558,-322.815662,0.00039311,7]
[406790728,1772195445566,-151.0,0.00039311,120]
[406790729,1772195445576,-322.815662,0.00039311,7]
[406790730,1772195445585,-151.0,0.00039311,120]
[406790731,1772195445594,-322.815662,0.00039311,7]
[406790732,1772195445604,-151.0,0.00039311,120]
[406790733,1772195445614,-151.0,0.00039311,60]
[406790734,1772195445625,-731.382172,0.00039311,120]
[406790735,1772195445634,-731.382172,0.00039311,120]
[406790736,1772195445644,-731.382172,0.00039311,120]
[406790738,1772195445653,-731.382172,0.00039311,120]
[406790739,1772195445662,-11749.96,0.000396,30]
[406790740,1772195445673,-500.0,0.00039736,120]
[406790741,1772195445683,-500.0,0.00039737,2]
[406790742,1772195445692,-500.0,0.00039737,2]
[406790743,1772195445702,-500.0,0.00039737,2]
[406790744,1772195445711,-500.0,0.00039737,2]
[406790745,1772195445721,-500.0,0.00039737,2]
[406790746,1772195445731,-500.0,0.00039737,2]
[406790747,1772195445739,-500.0,0.00039737,2]
[406790748,1772195445749,-500.0,0.00039737,2]
[406790749,1772195445757,-500.0,0.00039737,2]
[406790750,1772195445766,-500.0,0.00039737,2]
[406790751,1772195445775,-500.0,0.00039737,2]
[406790752,1772195445784,-427.0,0.00039737,2]
[406790753,1772195445793,-800.0,0.00039737,13]
[406790754,1772195445802,-800.0,0.00039737,13]
[406790755,1772195445811,-800.0,0.00039737,13]
[406790756,1772195445819,-800.0,0.00039737,13]
[406790757,1772195445829,-800.0,0.00039737,13]
[406790758,1772195445838,-800.0,0.00039737,13]
[406790759,1772195445848,-800.0,0.00039737,13]
[406790760,1772195445857,-800.0,0.00039737,13]
[406790761,1772195445866,-800.0,0.00039737,13]
[406790762,1772195445875,-800.0,0.00039737,13]
[406790763,1772195445885,-800.0,0.00039737,13]
[406790764,1772195445894,-800.0,0.00039737,13]
[406790765,1772195445903,-800.0,0.00039737,13]
[406790766,1772195445912,-800.0,0.00039737,13]
[406790767,1772195445920,-800.0,0.00039737,13]
[406790768,1772195445929,-800.0,0.00039737,13]
[406790769,1772195445938,-800.0,0.00039737,13]
[406790770,1772195445948,-800.0,0.00039737,13]
[406790771,1772195445957,-800.0,0.00039737,13]
[406790772,1772195445966,-800.0,0.00039737,13]
[406790773,1772195445975,-800.0,0.00039737,13]
[406790774,1772195445983,-800.0,0.00039737,13]
[406790775,1772195445992,-800.0,0.00039737,13]
[406790776,1772195446001,-800.0,0.00039737,13]
[406790777,1772195446010,-800.0,0.00039737,13]
[406790778,1772195446019,-800.0,0.00039737,13]
[406790779,1772195446029,-800.0,0.00039737,13]
[406790780,1772195446038,-800.0,0.00039737,13]
[406790781,1772195446047,-800.0,0.00039737,13]
[406790782,1772195446056,-800.0,0.00039737,13]
[406790783,1772195446065,-800.0,0.00039737,13]
[406790784,1772195446074,-800.0,0.00039737,13]
[406790785,1772195446083,-766.0,0.00039737,13]
[406790786,1772195446094,-800.0,0.00039737,13]
[406790787,1772195446106,-800.0,0.00039737,13]
[406790788,1772195446114,-800.0,0.00039737,13]
[406790789,1772195446124,-800.0,0.00039737,13]
[406790790,1772195446133,-800.0,0.00039737,13]
[406790791,1772195446144,-800.0,0.00039737,13]
[406790792,1772195446153,-800.0,0.00039737,13]
[406790793,1772195446162,-800.0,0.00039737,13]
[406790794,1772195446172,-800.0,0.00039737,13]
[406790795,1772195446181,-800.0,0.00039737,13]
[406790796,1772195446190,-800.0,0.00039737,13]
[406790797,1772195446199,-800.0,0.00039737,13]
[406790799,1772195446208,-800.0,0.00039737,13]
[406790800,1772195446219,-800.0,0.00039737,13]
[406790801,1772195446228,-800.0,0.00039737,13]
[406790802,1772195446236,-800.0,0.00039737,13]
[406790803,1772195446245,-800.0,0.00039737,13]
[406790804,1772195446255,-800.0,0.00039737,13]
[406790805,1772195446267,-800.0,0.00039737,13]
[406790806,1772195446277,-800.0,0.00039737,13]
[406790807,1772195446286,-800.0,0.00039737,13]
[406790808,1772195446295,-800.0,0.00039737,13]
[406790809,1772195446305,-800.0,0.00039737,13]
[406790810,1772195446315,-800.0,0.00039737,13]
[406790811,1772195446327,-500.0,0.0003977,2]
[406790812,1772195446337,-500.0,0.0003977,2]
[406790813,1772195446345,-1000.0,0.0003977,2]
[406790814,1772195446355,-1000.0,0.0003977,2]
[406790815,1772195446364,-1309.1,0.000398,14]
[406790816,1772195446374,-700.0,0.00039826,8]
[406790817,1772195446383,-500.0,0.0003984,30]
[406790818,1772195446394,-507.51471813,0.0003984,30]
[406790819,1772195446403,-662.94329481,0.00039852,2]
[406790820,1772195446413,-160.0,0.000399,30]
[406790821,1772195446422,-1040.2,0.00039905,30]
[406790822,1772195446431,-500.0,0.00039918,2]
[406790823,1772195446440,-264.1923484,0.00039957,7]
[406790824,1772195446450,-500.0,0.00039999,120]
[406790825,1772195446458,-57702.30900296,0.00039999,2]
[406790826,1772195446468,-500.0,0.00039999,120]
[406790827,1772195446477,-500.0,0.00039999,120]
[406790828,1772195446487,-495.15336737,0.00039999,31]
[406790829,1772195446498,-500.0,0.00039999,31]
[406790830,1772195446508,-523.78357775,0.00039999,31]
[406790831,1772195446518,-500.0,0.00039999,31]
[406790832,1772195446528,-500.0,0.00039999,31]
[406790833,1772195446537,-500.0,0.00039999,31]
[406790834,1772195446546,-450.93959115,0.00039999,31]
[406790835,1772195446558,-500.0,0.00039999,31]
[406790836,1772195446567,-460.74468726,0.00039999,31]
[406790837,1772195446577,-500.0,0.00039999,31]
[406790838,1772195446586,-500.0,0.00039999,31]
[406790839,1772195446595,-500.0,0.00039999,31]
[406790840,1772195446604,-500.0,0.00039999,31]
[406790841,1772195446613,-500.0,0.00039999,31]
[406790842,1772195446623,-500.0,0.00039999,31]
[406790843,1772195446632,-500.0,0.00039999,31]
[406790844,1772195446643,-500.0,0.00039999,31]
[406790845,1772195446652,-163.15267217,0.00039999,31]
[406790846,1772195446662,-500.0,0.00039999,31]
[406790847,1772195446671,-500.0,0.00039999,31]
[406790848,1772195446680,-500.0,0.00039999,31]
[406790849,1772195446689,-500.0,0.00039999,31]
[406790850,1772195446699,-500.0,0.00039999,31]
[406790851,1772195446708,-500.0,0.00039999,31]
[406790852,1772195446717,-250.0,0.00039999,31]
[406790853,1772195446727,-154.0,0.0004,120]
[406790854,1772195446735,-151.0,0.0004,120]
[406790855,1772195446862,-232.43799838,0.0004,120]
[406790856,1772195446873,-428.68305344,0.0004,7]
[406790857,1772195446882,-2228.17767087,0.0004,120]
[406790858,1772195446893,-2225.72192341,0.0004,7]
[406790859,1772195446902,-170.64899109,0.0004,120]
[406790860,1772195446911,-6000.0,0.0004,3]
[406790861,1772195446920,-496.53196946,0.0004,120]
[406790862,1772195446930,-995.20287872,0.0004,7]
[406790863,1772195446939,-1276.14794687,0.0004,14]
[406790864,1772195446949,-392.02779585,0.0004,2]
[406790865,1772195446958,-1566.50481207,0.0004,2]
[406790866,1772195446968,-4123.94271328,0.0004,2]
[406790867,1772195446977,-8036.726468,0.0004,120]
[406790868,1772195446986,-234.10711812,0.0004,120]
[406790869,1772195446996,-219.60375487,0.0004,2]
[406790870,1772195447006,-760.22722994,0.0004,2]
[406790871,1772195447015,-164.86976679,0.0004,120]
[406790872,1772195447025,-12900.02287852,0.0004,120]
[406790873,1772195447034,-530.07132271,0.0004,120]
[406790874,1772195447044,-277.79461607,0.0004,30]
[406790875,1772195447054,-355.70752278,0.0004,30]
[406790876,1772195447066,-1829.0,0.0004,120]
[406790877,1772195447076,-601.81452321,0.0004,2]
[406790878,1772195447086,-34226.5757402,0.0004,10]
[406790879,1772195447101,-10038.23633371,0.0004,120]
[406790880,1772195447112,-315.90831792,0.0004,2]
[406790881,1772195447123,-3000.0,0.0004,7]
[406790882,1772195447133,-162.21478329,0.0004,2]
[406790883,1772195447149,-10726.43449571,0.0004,2]
[406790884,1772195447161,-25705.87990451,0.0004,120]
[406790885,1772195447171,-518.17640426,0.0004,120]
[406790886,1772195447180,-1426.51,0.0004,120]
[406790887,1772195447189,-290.0,0.0004,120]
[406790888,1772195447199,-222.91,0.0004,120]
[406790889,1772195447207,-160.0,0.0004,120]
[406790890,1772195447217,-642.28,0.0004,120]
[406790891,1772195447226,-956.71,0.0004,120]
[406790892,1772195447235,-4038.48,0.0004,120]
[406790893,1772195447246,-417.13,0.0004,120]
[406790894,1772195447256,-5000.0,0.0004,7]
[406790895,1772195447266,-811.32772971,0.0004,3]
[406790896,1772195447276,-150.69,0.0004,2]
[406790897,1772195447284,-150.69,0.0004,2]
[406790898,1772195447294,-150.69,0.0004,2]
[406790899,1772195447304,-150.69,0.0004,2]
[406790900,1772195447313,-150.69,0.0004,2]
[406790901,1772195447323,-150.69,0.0004,2]
[406790902,1772195447332,-150.69,0.0004,2]
[406790903,1772195447342,-150.69,0.0004,2]
[406790904,1772195447351,-150.69,0.0004,2]
[406790905,1772195447361,-150.69,0.0004,2]
[406790906,1772195447371,-150.69,0.0004,2]
[406790907,1772195447380,-150.69,0.0004,2]
[406790908,1772195447392,-150.69,0.0004,2]
[406790909,1772195447402,-150.69,0.0004,2]
[406790910,1772195447411,-150.69,0.0004,2]
[406790911,1772195447421,-150.69,0.0004,2]
[406790912,1772195447431,-150.69,0.0004,2]
[406790913,1772195447440,-150.69,0.0004,2]
[406790914,1772195447450,-150.69,0.0004,2]
[406790915,1772195447459,-150.69,0.0004,2]
[406790916,1772195447469,-150.69,0.0004,2]
[406790917,1772195447479,-150.69,0.0004,2]
[406790918,1772195447488,-150.69,0.0004,2]
[406790919,1772195447497,-150.69,0.0004,2]
[406790920,1772195447507,-150.69,0.0004,2]
[406790921,1772195447516,-150.69,0.0004,2]
[406790922,1772195447526,-150.69,0.0004,2]
[406790923,1772195447535,-150.69,0.0004,2]
[406790924,1772195447546,-150.69,0.0004,2]
[406790925,1772195447557,-150.69,0.0004,2]
[406790926,1772195447566,-150.69,0.0004,2]
[406790927,1772195447576,-150.69,0.0004,2]
[406790928,1772195447586,-150.69,0.0004,2]
[406790929,1772195447596,-150.69,0.0004,2]
[406790930,1772195447606,-150.69,0.0004,2]
[406790931,1772195447616,-150.69,0.0004,2]
[406790932,1772195447626,-150.69,0.0004,2]
[406790933,1772195447635,-150.69,0.0004,2]
[406790934,1772195447648,-150.69,0.0004,2]
[406790935,1772195447657,-150.69,0.0004,2]
[406790936,1772195447668,-150.69,0.0004,2]
[406790937,1772195447679,-150.69,0.0004,2]
[406790938,1772195447690,-150.69,0.0004,2]
[406790939,1772195447700,-150.69,0.0004,2]
[406790940,1772195447711,-150.69,0.0004,2]
[406790941,1772195447721,-150.69,0.0004,2]
[406790942,1772195447731,-150.69,0.0004,2]
[406790943,1772195447740,-201.95653,0.0004002,120]
[406790944,1772195447749,-201.95653,0.0004002,120]
[406790945,1772195447759,-201.95653,0.0004002,120]
[406790946,1772195447768,-201.95653,0.0004002,120]
[406790947,1772195447778,-201.95653,0.0004002,120]
[406790948,1772195447788,-150.0,0.00040032,120]
[406790949,1772195447799,-1000.0,0.00040062,7]
[406790950,1772195447808,-5515.33,0.000401,14]
[406790951,1772195447818,-7675.47,0.000401,14]
[406790952,1772195447828,-2000.0,0.000401,2]
[406790953,1772195447838,-500.0,0.00040119,120]
[406790954,1772195447848,-1000.0,0.00040139,7]
[406790955,1772195447858,-150.0,0.0004015,7]
[406790956,1772195447868,-150.0,0.00040165,2]
[406790957,1772195447878,-298.969,0.00040166,2]
[406790958,1772195447890,-1000.0,0.00040178,7]
[406790959,1772195447899,-1000.0,0.0004018,7]
[406790960,1772195447909,-1000.0,0.00040211,7]
[406790961,1772195447919,-150.0,0.00040217,7]
[406790962,1772195447929,-500.0,0.00040219,2]
[406790963,1772195447938,-500.0,0.00040273,2]
[406790964,1772195447948,-500.0,0.00040273,2]
[406790965,1772195447958,-500.0,0.00040273,2]
[406790966,1772195447968,-500.0,0.00040273,2]
[406790967,1772195447978,-500.0,0.00040273,2]
[406790968,1772195447988,-500.0,0.00040273,2]
[406790969,1772195447998,-500.0,0.00040273,2]
[406790970,1772195448008,-500.0,0.00040273,2]
[406790971,1772195448017,-500.0,0.00040273,2]
[406790972,1772195448027,-500.0,0.00040273,2]
[406790973,1772195448038,-500.0,0.00040273,2]
[406790974,1772195448048,-500.0,0.00040273,2]
[406790975,1772195448057,-500.0,0.00040273,2]
[406790976,1772195448067,-500.0,0.00040273,2]
[406790977,1772195448076,-500.0,0.00040273,2]
[406790978,1772195448085,-500.0,0.00040273,2]
[406790979,1772195448096,-500.0,0.00040273,2]
[406790980,1772195448111,-500.0,0.00040273,2]
[406790981,1772195448120,-500.0,0.00040273,2]
[406790982,1772195448129,-500.0,0.00040273,2]
[406790983,1772195448143,-500.0,0.00040273,2]
[406790984,1772195448152,-500.0,0.00040273,2]
[406790985,1772195448161,-500.0,0.00040273,2]
[406790986,1772195448173,-500.0,0.00040273,2]
[406790987,1772195448184,-500.0,0.00040273,2]
[406790988,1772195448194,-500.0,0.00040273,2]
[406790989,1772195448203,-500.0,0.00040273,2]
[406790990,1772195448212,-500.0,0.00040273,2]
[406790991,1772195448222,-500.0,0.00040273,2]
[406790992,1772195448231,-500.0,0.00040273,2]
[406790993,1772195448241,-500.0,0.00040273,2]
[406790994,1772195448250,-500.0,0.00040273,2]
[406790995,1772195448260,-500.0,0.00040273,2]
[406790996,1772195448271,-500.0,0.00040273,2]
[406790997,1772195448280,-500.0,0.00040273,2]
[406790998,1772195448290,-500.0,0.00040273,2]
[406790999,1772195448300,-800.0,0.00040273,13]
[406791000,1772195448309,-800.0,0.00040273,13]
[406791001,1772195448319,-467.0,0.00040273,13]
[406791002,1772195448329,-56417.5471327,0.00040299,2]
[406791003,1772195448339,-845.0,0.00040324,11]
[406791004,1772195448349,-509.0,0.00040368,24]
[406791005,1772195448358,-1000.0,0.00040408,7]
[406791006,1772195448368,-1000.0,0.00040412,7]
[406791007,1772195448378,-150.0,0.00040421,7]
[406791008,1772195448390,-1000.0,0.00040426,2]
[406791009,1772195448399,-443.46717804,0.00040426,2]
[406791010,1772195448409,-201.95653,0.00040426,120]
[406791011,1772195448418,-150.0,0.00040453,7]
[406791012,1772195448428,-152.0,0.00040461,4]
[406791013,1772195448437,-1000.0,0.00040472,7]
[406791014,1772195448447,-11749.96,0.000405,30]
[406791015,1772195448457,-150.0,0.00040527,7]
[406791016,1772195448466,-1066.98996505,0.00040537,7]
[406791017,1772195448476,-150.0,0.00040546,7]
[406791018,1772195448487,-204.0,0.00040578,14]
[406791019,1772195448496,-1040.2,0.00040605,30]
[406791020,1772195448506,-1000.0,0.00040611,7]
[406791021,1772195448516,-150.0,0.00040651,7]
[406791022,1772195448525,-174.0,0.00040682,120]
[406791023,1772195448535,-175.0,0.00040682,120]
[406791024,1772195448544,-150.0,0.00040694,7]
[406791025,1772195448554,-1309.1,0.000407,14]
[406791026,1772195448563,-1000.0,0.00040701,7]
[406791027,1772195448572,-1000.0,0.00040736,7]
[406791028,1772195448582,-171.0,0.00040756,120]
[406791029,1772195448592,-4502.8,0.00040767,30]
[406791030,1772195448602,-4502.8,0.00040767,30]
[406791031,1772195448611,-4502.8,0.00040767,30]
[406791032,1772195448619,-4502.8,0.00040767,30]
[406791033,1772195448629,-500.0,0.0004077,3]
[406791034,1772195448639,-1000.0,0.0004077,3]
[406791035,1772195448648,-344.41412515,0.00040783,30]
[406791036,1772195448658,-500.0,0.00040848,120]
[406791037,1772195448667,-500.0,0.00040848,120]
[406791038,1772195448678,-13314.17003144,0.0004085,30]
[406791039,1772195448688,-1964.8222745,0.000409,2]
[406791040,1772195448697,-300.0,0.000409,14]
[406791041,1772195448706,-211.0,0.0004093,30]
[406791042,1772195448716,-500.0,0.00040949,120]
[406791043,1772195448726,-500.0,0.00040949,120]
[406791044,1772195448735,-230980.0,0.0004095,60]
[406791045,1772195448745,-851.0,0.00040987,11]
[406791046,1772195448754,-500.0,0.00040999,120]
[406791047,1772195448763,-500.0,0.00040999,120]
[406791048,1772195448772,-1238.70101632,0.00041,30]
[406791049,1772195448782,-1235.12022053,0.00041,30]
[406791050,1772195448907,-800.0,0.00041,120]
[406791051,1772195448918,-8102.0,0.00041,30]
[406791052,1772195448927,-10000.0,0.00041,120]
[406791053,1772195448937,-10083.898771,0.00041,120]
[406791054,1772195448945,-11739.50497813,0.00041,120]
[406791055,1772195448955,-56754.97063848,0.00041,5]
[406791056,1772195448963,-2318.152568,0.00041,120]
[406791057,1772195448973,-1563.62426102,0.00041,120]
[406791058,1772195448983,-7780.3490091,0.00041,2]
[406791059,1772195448992,-1000.0,0.00041,90]
[406791060,1772195449001,-1000.0,0.00041,90]
[406791061,1772195449011,-1000.0,0.00041,90]
[406791062,1772195449020,-1000.0,0.00041,90]
[406791063,1772195449029,-5000.0,0.00041,7]
[406791064,1772195449038,-1000.0,0.00041,2]
[406791065,1772195449047,-5000.0,0.00041,14]
[406791066,1772195449056,-250.0,0.00041,7]
[406791067,1772195449065,-404.26292176,0.00041,7]
[406791068,1772195449074,-1000.0,0.00041,30]
[406791069,1772195449083,-5000.0,0.00041,7]
[406791070,1772195449093,-4502.8,0.00041041,30]
[406791071,1772195449103,-4502.8,0.00041041,30]
[406791072,1772195449114,-167.0,0.00041047,120]
[406791073,1772195449124,-167.0,0.00041095,120]
[406791074,1772195449133,-844.0,0.00041096,120]
[406791075,1772195449144,-300.0,0.00041096,10]
[406791076,1772195449152,-150.0,0.00041096,10]
[406791077,1772195449161,-1258.86,0.00041096,120]
[406791078,1772195449171,-346.81,0.00041096,120]
[406791079,1772195449184,-151.0,0.00041096,2]
[406791080,1772195449194,-151.0,0.00041096,2]
[406791081,1772195449203,-198.324231,0.00041096,2]
[406791082,1772195449212,-234.314225,0.00041096,120]
[406791083,1772195449222,-254.28375,0.00041096,120]
[406791084,1772195449231,-151.0,0.00041096,120]
[406791085,1772195449241,-168.257733,0.00041096,120]
[406791086,1772195449250,-174.8858,0.00041096,120]
[406791087,1772195449259,-151.000023,0.00041096,120]
[406791088,1772195449268,-178.227243,0.00041096,120]
[406791089,1772195449278,-151.0,0.00041096,120]
[406791090,1772195449286,-151.0,0.00041096,120]
[406791091,1772195449296,-151.0,0.00041096,120]
[406791092,1772195449305,-151.0,0.00041096,120]
[406791093,1772195449315,-151.0,0.00041096,120]
[406791094,1772195449324,-158.469121,0.00041096,120]
[406791095,1772195449333,-151.0,0.00041096,120]
[406791096,1772195449343,-151.0,0.00041096,120]
[406791097,1772195449352,-151.0,0.00041096,120]
[406791098,1772195449361,-151.0,0.00041096,120]
[406791099,1772195449371,-151.0,0.00041096,120]
[406791100,1772195449380,-151.0,0.00041096,120]
[406791101,1772195449390,-151.0,0.00041096,120]
[406791102,1772195449400,-216.381473,0.00041096,120]
[406791103,1772195449410,-151.0,0.00041096,120]
[406791104,1772195449420,-171.91717,0.00041096,120]
[406791105,1772195449430,-151.0,0.00041096,120]
[406791106,1772195449441,-151.0,0.00041096,120]
[406791107,1772195449450,-151.0,0.00041096,120]
[406791108,1772195449460,-151.0,0.00041096,120]
[406791109,1772195449469,-514.259014,0.00041096,120]
[406791110,1772195449479,-514.259014,0.00041096,120]
[406791111,1772195449488,-514.259014,0.00041096,120]
[406791112,1772195449497,-514.259014,0.00041096,120]
[406791113,1772195449507,-209.530359,0.00041096,120]
[406791114,1772195449516,-514.259014,0.00041096,120]
[406791115,1772195449526,-514.259014,0.00041096,120]
[406791116,1772195449535,-514.259014,0.00041096,120]
[406791117,1772195449544,-514.259014,0.00041096,120]
[406791118,1772195449559,-155.330113,0.00041096,120]
[406791119,1772195449569,-151.0,0.00041096,120]
[406791120,1772195449578,-151.0,0.00041096,120]
[406791121,1772195449587,-151.0,0.00041096,120]
[406791122,1772195449596,-151.0,0.00041096,120]
[406791123,1772195449606,-151.0,0.00041096,120]
[406791124,1772195449615,-151.0,0.00041096,120]
[406791125,1772195449625,-180.898308,0.00041096,120]
[406791126,1772195449634,-151.0,0.00041096,120]
[406791127,1772195449645,-151.0,0.00041096,120]
[406791128,1772195449654,-570.413117,0.00041096,120]
[406791129,1772195449663,-570.413117,0.00041096,120]
[406791130,1772195449673,-570.413117,0.00041096,120]
[406791131,1772195449682,-570.413117,0.00041096,120]
[406791132,1772195449692,-570.413117,0.00041096,120]
[406791133,1772195449701,-570.413117,0.00041096,120]
[406791134,1772195449710,-570.413117,0.00041096,120]
[406791135,1772195449719,-570.413117,0.00041096,120]
[406791136,1772195449728,-151.0,0.00041096,120]
[406791137,1772195449737,-151.0,0.00041096,120]
[406791138,1772195449746,-165.216366,0.00041096,120]
[406791139,1772195449755,-165.216366,0.00041096,120]
[406791140,1772195449764,-224.302244,0.00041096,120]
[406791141,1772195449774,-165.216366,0.00041096,120]
[406791142,1772195449784,-165.216366,0.00041096,120]
[406791143,1772195449793,-165.216366,0.00041096,120]
[406791144,1772195449802,-165.216366,0.00041096,120]
[406791145,1772195449811,-165.216366,0.00041096,120]